bitfinex/quotes_SOLUSD_20240601
["timestamp","ask_amount","ask_price","bid_price","bid_amount"]
[1717232544044,2.211,167.34,167.25,95.86]
[1717232544045,5.641,167.34,167.26,29.80790813]
[1717232544230,3.43,167.34,167.26,29.80790813]
[1717232544432,2.2113,167.33,167.26,29.80790813]
[1717232545722,2.2113,167.32,167.26,29.80790813]
[1717232547921,2.2114,167.31,167.26,29.80790813]
[1717232548933,2.2114,167.31,167.25,29.93519821]
[1717232549144,2.2116,167.3,167.25,29.93519821]
[1717232549347,2.2117,167.29,167.22,29.56206277]
[1717232553450,2.2116,167.3,167.24,29.86432376]
[1717232554346,2.2117,167.29,167.23,29.15656192]
[1717232559155,2.2118,167.28,167.23,29.15656192]
[1717232560166,2.2117,167.29,167.23,29.15656192]
[1717232563081,2.2117,167.29,167.23,125.01656192]
[1717232563255,2.2117,167.29,167.25,29.93519821]
[1717232564369,2.2117,167.29,167.23,29.15656192]
[1717232566864,2.2118,167.28,167.23,29.15656192]
[1717232567460,2.2117,167.29,167.23,89.15656192]
[1717232567659,2.2117,167.29,167.25,29.93519821]
[1717232568068,2.2117,167.29,167.24,29.86432376]
[1717232573189,2.2119,167.28,167.22,29.56206277]
[1717232578303,3.43,167.3,167.18,29.05652432]
[1717232578487,3.43,167.3,167.17,29.0396152]
[1717232578488,2.2125,167.24,167.17,29.0396152]
[1717232578798,2.2125,167.23,167.16,35.86]
[1717232578985,11.2287,167.29,167.16,35.86]
[1717232578986,2.2122,167.25,167.16,35.86]
[1717232579180,2.2124,167.24,167.16,35.86]
[1717232580282,2.2124,167.24,167.17,60.0]
[1717232580897,2.2124,167.24,167.16,41.35]
[1717232581099,2.2125,167.23,167.17,0.34]
[1717232582007,2.2125,167.23,167.16,35.86]
[1717232582702,2.2124,167.24,167.16,35.86]
[1717232583810,2.2125,167.23,167.16,35.86]
[1717232584291,2.2123,167.24,167.17,60.0]
[1717232585504,2.2125,167.23,167.17,60.0]
[1717232586226,2.2126,167.22,167.16,35.86]
[1717232586508,2.2125,167.23,167.17,0.34]
[1717232587996,2.2122,167.26,167.19,60.0]
[1717232588302,2.2122,167.25,167.17,96.2]
[1717232588617,2.2122,167.25,167.19,95.86]
[1717232588816,2.2122,167.25,167.2,0.34]
[1717232589902,2.2122,167.25,167.19,0.34]
[1717232591005,3.43,167.29,167.19,96.2]
[1717232591209,3.43,167.29,167.21,60.0]
[1717232591429,3.43,167.29,167.22,0.17]
[1717232591893,2.2121,167.26,167.22,0.17]
[1717232593003,12.2798,167.24,167.18,8.94437962]
[1717232593200,12.2798,167.24,167.08,24.2184]
[1717232593201,16.7047,167.24,167.16,8.94437962]
[1717232593399,2.2129,167.2,167.16,8.94437962]
[1717232594518,2.2129,167.2,167.17,8.94437962]
[1717232595520,2.2129,167.2,167.17,8.94942912]
[1717232596214,3.43,167.24,167.17,8.94942912]
[1717232596400,2.2126,167.23,167.18,60.0]
[1717232598205,3.43,167.24,167.18,60.0]
[1717232598206,2.2127,167.22,167.18,60.0]
[1717232598938,2.2127,167.22,167.17,44.80942912]
[1717232599119,5.6424,167.24,167.18,60.17]
[1717232599299,4.4241,167.27,167.18,60.17]
[1717232599699,2.2125,167.23,167.18,60.17]
[1717232600211,2.2127,167.22,167.18,60.17]
[1717232600600,2.2127,167.22,167.18,96.03]
[1717232600906,2.2127,167.22,167.19,0.17]
[1717232606134,10.0659,167.28,167.18,36.03]
[1717232606314,2.2128,167.21,167.18,36.03]
[1717232606831,2.2128,167.21,167.18,0.17]
[1717232607833,2.2128,167.21,167.18,96.2]
[1717232608026,2.2126,167.22,167.18,96.2]
[1717232608831,2.2127,167.21,167.18,96.2]
[1717232609348,2.2126,167.23,167.18,96.2]
[1717232609830,4.4243,167.26,167.18,96.2]
[1717232609831,2.2127,167.22,167.18,96.2]
[1717232610036,2.2127,167.21,167.18,96.03]
[1717232611023,2.2127,167.21,167.19,1.45674668]
[1717232611535,2.2127,167.21,167.18,96.03]
[1717232612129,2.2127,167.21,167.18,36.03]
[1717232612512,2.2127,167.21,167.18,0.17]
[1717232612813,2.2126,167.22,167.18,96.2]
[1717232613317,2.2126,167.22,167.18,36.2]
[1717232613523,2.2128,167.21,167.18,36.03]
[1717232613717,2.2128,167.21,167.18,0.17]
[1717232614033,2.2128,167.21,167.18,60.34]
[1717232614835,2.2126,167.22,167.18,60.34]
[1717232615136,2.2128,167.21,167.18,60.34]
[1717232615435,2.2128,167.21,167.18,96.2]
[1717232616635,4.4243,167.26,167.18,96.2]
[1717232616932,2.2127,167.22,167.18,96.2]
[1717232618011,2.2127,167.21,167.18,96.2]
[1717232618624,2.2127,167.21,167.18,36.2]
[1717232619433,2.2127,167.21,167.18,0.34]
[1717232620131,2.2127,167.21,167.18,60.34]
[1717232622811,2.2127,167.21,167.19,0.40553415]
[1717232630827,2.2126,167.22,167.19,0.40553415]
[1717232633445,2.2127,167.21,167.19,0.40553415]
[1717232634834,2.2129,167.2,167.19,0.40553415]
[1717232635051,2.2128,167.21,167.19,0.40553415]
[1717232638037,2.2126,167.22,167.19,0.40553415]
[1717232639741,2.2128,167.21,167.19,0.40553415]
[1717232639937,6.6366,167.26,167.2,60.0]
[1717232640146,6.6366,167.26,167.19,36.43553415]
[1717232640349,2.2126,167.22,167.19,36.43553415]
[1717232640553,2.2125,167.23,167.19,36.26553415]
[1717232640855,2.2125,167.23,167.2,0.17]
[1717232641365,2.2125,167.23,167.19,36.26553415]
[1717232648481,2.2125,167.23,167.2,0.17]
[1717232649760,2.2123,167.25,167.2,0.17]
[1717232649966,4.4229,167.31,167.22,60.0]
[1717232650167,3.43,167.32,167.22,60.0]
[1717232650168,3.43,167.32,167.24,60.0]
[1717232650382,2.2117,167.29,167.24,60.0]
[1717232651048,2.2117,167.29,167.24,95.86]
[1717232651246,4.4219,167.35,167.25,0.34]
[1717232652059,2.2117,167.3,167.26,60.0]
[1717232652940,2.2117,167.29,167.26,60.0]
[1717232653839,2.2118,167.28,167.25,0.34]
[1717232654044,4.4224,167.33,167.23,35.86]
[1717232654359,4.4224,167.33,167.24,0.17]
[1717232654768,4.4224,167.33,167.23,35.86]
[1717232654957,2.2118,167.29,167.23,35.86]
[1717232655268,2.2119,167.28,167.23,35.86]
[1717232657976,2.2117,167.29,167.23,35.86]
[1717232658379,2.2118,167.28,167.23,35.86]
[1717232660075,2.2117,167.29,167.23,35.86]
[1717232663576,2.2117,167.29,167.24,0.34]
[1717232664664,2.2117,167.29,167.23,35.86]
[1717232670094,2.2117,167.29,167.24,60.0]
[1717232673286,15.4767,167.35,167.25,0.17]
[1717232673491,2.2116,167.3,167.25,0.17]
[1717232674293,2.2116,167.3,167.25,0.34]
[1717232674473,2.2116,167.3,167.26,60.0]
[1717232674994,2.2118,167.29,167.25,0.34]
[1717232675194,2.2118,167.28,167.25,0.34]
[1717232675893,2.2117,167.29,167.25,0.34]
[1717232676096,2.2116,167.3,167.24,35.86]
[1717232676697,2.2117,167.29,167.24,35.86]
[1717232679394,2.2117,167.29,167.25,60.0]
[1717232681674,2.2118,167.28,167.24,35.86]
[1717232682299,2.2117,167.29,167.24,35.86]
[1717232683378,2.2117,167.29,167.25,60.0]
[1717232683982,2.2113,167.32,167.25,95.86]
[1717232684281,2.2115,167.31,167.26,0.34]
[1717232684677,2.2116,167.3,167.26,0.34]
[1717232688703,2.2116,167.3,167.26,1.53449659]
[1717232691001,2.2116,167.3,167.26,1.92679004]
[1717232691197,2.2116,167.3,167.27,1.58669517]
[1717232693689,2.2117,167.29,167.27,1.58669517]
[1717232694597,2.2116,167.3,167.27,1.58669517]
[1717232697094,2.2117,167.29,167.27,1.58669517]
[1717232698304,4.4224,167.33,167.24,35.86]
[1717232698614,4.4224,167.33,167.25,0.34]
[1717232699527,2.2118,167.29,167.25,0.34]
[1717232700795,2.2115,167.31,167.25,60.34]
[1717232700994,8.8438,167.35,167.25,60.34]
[1717232701322,2.2117,167.3,167.25,60.34]
[1717232704699,2.2117,167.3,167.27,60.0]
[1717232706222,2.2117,167.3,167.26,35.86]
[1717232709220,2.2114,167.31,167.27,60.17]
[1717232709421,2.2114,167.31,167.27,60.34]
[1717232709728,2.2115,167.3,167.27,60.34]
[1717232710411,8.8438,167.35,167.27,60.34]
[1717232710714,2.2115,167.31,167.27,60.34]
[1717232717840,2.2116,167.3,167.27,60.34]
[1717232719640,2.2116,167.3,167.27,0.34]
[1717232719832,2.2114,167.31,167.27,0.34]
[1717232720536,2.2113,167.33,167.29,60.0]
[1717232720838,3.43,167.37,167.29,60.0]
[1717232720839,2.211,167.34,167.29,60.0]
[1717232721322,2.2112,167.33,167.29,60.0]
[1717232721852,2.211,167.34,167.29,95.86]
[1717232722143,2.211,167.34,167.3,0.34]
[1717232722733,2.211,167.34,167.31,60.0]
[1717232727428,2.211,167.34,167.32,0.17]
[1717232728741,2.2108,167.36,167.33,60.0]
[1717232729551,2.2109,167.35,167.33,60.0]
[1717232733352,2.2112,167.33,167.27,60.0]
[1717232733735,2.2113,167.32,167.27,60.0]
[1717232733933,2.2113,167.32,167.27,82.873]
[1717232734334,2.2113,167.32,167.27,118.733]
[1717232734534,2.2113,167.32,167.28,6.4144]
[1717232735049,2.2113,167.32,167.27,95.86]
[1717232735255,2.2113,167.32,167.27,102.2744]
[1717232735449,2.0114,167.31,167.27,102.2744]
[1717232735840,2.2113,167.32,167.27,102.2744]
[1717232736050,2.2114,167.31,167.26,95.86]
[1717232736252,4.4215,167.37,167.26,95.86]
[1717232736253,2.2116,167.3,167.26,95.86]
[1717232737160,2.2116,167.3,167.27,0.17]
[1717232737462,2.2114,167.31,167.27,0.34]
[1717232737829,2.2113,167.32,167.27,0.34]
[1717232738026,2.2113,167.32,167.28,95.86]
[1717232738231,2.2113,167.32,167.29,0.34]
[1717232738737,2.2111,167.34,167.29,0.34]
[1717232739941,2.2112,167.33,167.29,0.34]
[1717232740760,2.2112,167.33,167.29,96.2]
[1717232741346,2.2112,167.33,167.29,36.2]
[1717232741577,2.2114,167.32,167.26,95.86]
[1717232741859,2.2114,167.32,167.28,95.86]
[1717232742055,2.2112,167.33,167.28,95.86]
[1717232743148,2.2112,167.33,167.3,60.0]
[1717232743350,2.2112,167.33,167.29,0.34]
[1717232743554,4.4216,167.36,167.29,0.34]
[1717232743555,2.2113,167.32,167.29,0.34]
[1717232744637,2.2112,167.33,167.29,0.17]
[1717232745538,4.4216,167.36,167.27,60.0]
[1717232745741,2.2113,167.33,167.28,1.89787929]
[1717232745963,2.2113,167.33,167.27,95.86]
[1717232746657,2.2113,167.33,167.28,0.17]
[1717232747165,2.2113,167.32,167.27,0.34]
[1717232747550,2.2112,167.33,167.27,0.34]
[1717232747867,2.2112,167.33,167.28,60.0]
[1717232748177,2.2112,167.33,167.29,0.17]
[1717232749673,2.2113,167.32,167.29,0.17]
[1717232750470,2.2112,167.33,167.29,0.17]
[1717232750764,2.2109,167.36,167.31,35.86]
[1717232750949,2.2109,167.36,167.32,0.34]
[1717232752264,2.2109,167.36,167.32,96.2]
[1717232753182,2.2109,167.35,167.32,60.17]
[1717232753378,2.2109,167.35,167.32,60.0]
[1717232753694,2.2109,167.35,167.3,95.86]
[1717232753878,2.2109,167.35,167.31,0.34]
[1717232754185,2.2109,167.35,167.32,60.0]
[1717232756986,2.2109,167.35,167.32,95.86]
[1717232757282,2.2109,167.35,167.33,0.34]
[1717232758671,2.2109,167.35,167.32,60.0]
[1717232763372,2.2109,167.35,167.31,0.34]
[1717232764797,2.2109,167.35,167.31,0.17]
[1717232766591,7.8509,167.39,167.3,95.86]
[1717232766795,7.8509,167.39,167.28,6.6243]
[1717232766796,2.211,167.34,167.29,0.17]
[1717232767001,2.211,167.34,167.29,0.34]
[1717232767379,2.2112,167.33,167.29,0.17]
[1717232767593,2.2112,167.33,167.28,35.86]
[1717232767912,2.2112,167.33,167.27,35.86]
[1717232768597,2.2113,167.32,167.27,35.86]
[1717232768791,2.2112,167.33,167.28,0.17]
[1717232769099,2.2112,167.33,167.29,60.0]
[1717232772810,2.2113,167.32,167.29,60.0]
[1717232773821,2.2113,167.32,167.28,0.34]
[1717232775004,2.2112,167.33,167.28,0.34]
[1717232775915,2.2112,167.33,167.28,60.34]
[1717232781428,2.2112,167.33,167.28,96.2]
[1717232790230,2.2112,167.33,167.3,60.0]
[1717232790421,2.2112,167.33,167.31,0.17]
[1717232790834,2.2112,167.33,167.31,0.34]
[1717232791539,2.211,167.34,167.31,0.34]
[1717232793641,2.2109,167.35,167.32,60.0]
[1717232794239,2.2109,167.35,167.33,0.17]
[1717232795054,2.2108,167.36,167.33,0.34]
[1717232795749,2.2108,167.36,167.33,1.81617548]
[1717232796058,2.2108,167.36,167.33,0.34]
[1717232796756,2.2108,167.36,167.34,60.0]
[1717232797357,2.2106,167.38,167.34,60.0]
[1717232797660,2.2106,167.37,167.34,60.0]
[1717232799556,2.2108,167.36,167.34,60.0]
[1717232802958,2.2108,167.36,167.35,2.38926519]
[1717232804565,2.2108,167.36,167.35,2.72926519]
[1717232805856,2.2106,167.37,167.35,2.72926519]
[1717232806160,2.2106,167.37,167.36,0.34]
[1717232806363,2.2106,167.37,167.36,60.34]
[1717232806652,2.2105,167.39,167.36,60.34]
[1717232806855,2.2105,167.38,167.36,60.34]
[1717232812269,2.2106,167.37,167.34,113.84]
[1717232812564,2.2106,167.37,167.33,95.86]
[1717232812882,0.03729832,167.41,167.35,60.0]
[1717232813166,2.2105,167.38,167.35,60.0]
[1717232815971,2.2104,167.39,167.35,60.0]
[1717232816341,2.2104,167.39,167.36,0.17]
[1717232816564,2.2104,167.39,167.36,0.34]
[1717232818363,0.03729832,167.41,167.36,0.34]
[1717232818569,2.2102,167.4,167.36,0.34]
[1717232819547,2.2104,167.39,167.36,0.34]
[1717232820380,2.2104,167.39,167.37,60.0]
[1717232823973,4.16719832,167.44,167.37,60.0]
[1717232824272,4.4198,167.43,167.37,60.0]
[1717232826078,2.2105,167.39,167.37,60.0]
[1717232827380,2.2105,167.39,167.36,0.34]
[1717232828980,2.2105,167.39,167.37,60.0]
[1717232830275,2.2105,167.38,167.36,0.34]
[1717232830575,2.2106,167.38,167.34,35.86]
[1717232831360,2.2106,167.38,167.34,95.86]
[1717232831781,2.2106,167.38,167.35,0.17]
[1717232832163,2.2107,167.37,167.35,0.17]
[1717232832781,2.2107,167.37,167.34,95.86]
[1717232832961,2.2105,167.38,167.34,95.86]
[1717232835398,2.2105,167.38,167.35,0.17]
[1717232835572,2.2105,167.38,167.35,0.34]
[1717232837689,2.2104,167.39,167.35,0.34]
[1717232844586,4.4202,167.42,167.35,0.34]
[1717232844587,2.2105,167.38,167.35,0.34]
[1717232844789,2.2106,167.37,167.33,35.86]
[1717232845674,2.2106,167.37,167.32,60.0]
[1717232845884,2.2108,167.36,167.3,60.0]
[1717232846085,4.4205,167.4,167.3,60.0]
[1717232846266,2.2107,167.37,167.3,60.0]
[1717232846469,2.2108,167.36,167.3,60.0]
[1717232847175,2.2109,167.35,167.3,60.0]
[1717232847899,2.2108,167.36,167.3,60.0]
[1717232849186,2.2109,167.35,167.3,95.86]
[1717232849370,4.4205,167.4,167.3,95.86]
[1717232849371,2.2108,167.36,167.32,60.0]
[1717232849579,2.2108,167.36,167.33,0.17]
[1717232850292,2.2109,167.35,167.33,0.17]
[1717232852779,2.2109,167.35,167.32,60.0]
[1717232854391,2.2108,167.36,167.33,0.17]
[1717232856294,2.2108,167.36,167.33,0.34]
[1717232858203,2.2108,167.36,167.34,60.0]
[1717232858875,2.2107,167.37,167.34,60.0]
[1717232865910,2.2108,167.36,167.34,60.0]
[1717232870614,2.2108,167.36,167.33,0.34]
[1717232871515,2.2109,167.35,167.31,35.86]
[1717232872797,2.2109,167.35,167.32,0.17]
[1717232873000,2.2109,167.35,167.32,0.34]
[1717232873296,2.2108,167.36,167.32,0.34]
[1717232874022,2.2108,167.36,167.32,60.34]
[1717232878919,2.2106,167.37,167.32,60.34]
[1717232879794,4.4205,167.4,167.32,60.34]
[1717232880010,2.2106,167.37,167.32,96.2]
[1717232883505,2.2106,167.37,167.32,0.34]
[1717232885813,2.2106,167.37,167.32,96.2]
[1717232886126,2.2106,167.37,167.32,36.2]
[1717232887828,2.2106,167.37,167.32,0.34]
[1717232888129,3.43,167.37,167.3,60.0]
[1717232888430,2.211,167.35,167.3,60.0]
[1717232888932,30.0,167.34,167.3,60.0]
[1717232889313,32.211,167.34,167.3,60.0]
[1717232890511,2.211,167.34,167.3,60.0]
[1717232891833,2.2109,167.35,167.3,60.0]
[1717232892638,2.211,167.34,167.3,60.0]
[1717232893417,2.2109,167.35,167.3,60.0]
[1717232894317,2.2109,167.35,167.29,54.18]
[1717232894318,2.2109,167.35,167.32,60.0]
[1717232896540,2.2108,167.36,167.32,60.0]
[1717232896932,2.2108,167.36,167.32,95.86]
[1717232897121,2.2108,167.36,167.33,0.17]
[1717232899417,2.2109,167.35,167.33,0.17]
[1717232902719,2.2109,167.35,167.33,0.34]
[1717232904238,2.2109,167.35,167.33,0.17]
[1717232905243,2.2109,167.35,167.32,53.84]
[1717232905839,2.211,167.34,167.32,53.84]
[1717232906042,2.2109,167.35,167.32,53.84]
[1717232906248,4.4209,167.39,167.32,53.84]
[1717232906249,2.211,167.34,167.32,53.84]
[1717232909969,2.2109,167.35,167.32,53.84]
[1717232913637,2.2108,167.36,167.32,53.84]
[1717232914654,2.2109,167.35,167.32,53.84]
[1717232915637,2.2109,167.35,167.31,0.17]
[1717232916848,2.211,167.34,167.31,0.17]
[1717232919545,2.211,167.34,167.32,60.0]
[1717232919761,2.2109,167.35,167.32,60.0]
[1717232926736,2.2109,167.35,167.31,0.34]
[1717232928238,2.2109,167.35,167.32,60.0]
[1717232930169,2.2109,167.35,167.33,0.34]
[1717232934269,2.2108,167.36,167.33,0.34]
[1717232935844,2.2109,167.35,167.33,0.34]
[1717232941070,4.4212,167.38,167.3,53.84]
[1717232941458,2.2112,167.33,167.3,53.84]
[1717232941767,4.4212,167.38,167.29,60.0]
[1717232941768,2.2114,167.32,167.29,60.0]
[1717232943457,2.2112,167.33,167.29,77.98]
[1717232944667,2.2112,167.33,167.29,17.98]
[1717232949269,2.2112,167.33,167.29,77.98]
[1717232951462,2.2111,167.34,167.29,77.98]
[1717232952064,2.2111,167.34,167.29,113.84]
[1717232953069,2.2111,167.34,167.3,0.34]
[1717232953874,2.2111,167.34,167.31,60.0]
[1717232955091,2.2111,167.34,167.3,0.34]
[1717232961889,2.2111,167.34,167.31,60.0]
[1717232967097,2.2111,167.34,167.31,77.98]
[1717232968374,2.2111,167.34,167.31,113.84]
[1717232969900,2.2111,167.34,167.33,60.0]
[1717232970079,7.8507,167.4,167.33,114.18]
[1717232970394,7.8507,167.4,167.34,0.17]
[1717232970395,2.2108,167.36,167.34,0.17]
[1717232971287,2.2107,167.37,167.34,0.34]
[1717232975508,7.8507,167.4,167.31,17.98]
[1717232975682,2.2109,167.35,167.31,17.98]
[1717232976310,2.2109,167.35,167.31,77.98]
[1717232977008,2.2108,167.36,167.31,77.98]
[1717232979406,2.2108,167.36,167.31,17.98]
[1717232980001,2.2108,167.36,167.31,77.98]
[1717232980217,2.2108,167.36,167.31,17.98]
[1717232982821,2.2108,167.36,167.31,77.98]
[1717232988204,2.2108,167.36,167.31,17.98]
[1717232989329,2.2108,167.36,167.3,54.18]
[1717232989503,4.4209,167.39,167.3,54.18]
[1717232989704,2.2109,167.35,167.3,53.84]
[1717232992329,2.211,167.34,167.3,53.84]
[1717232996528,2.2112,167.33,167.3,53.84]
[1717232997731,2.211,167.34,167.3,53.84]
[1717233003329,2.211,167.34,167.31,77.98]
[1717233003538,2.2109,167.35,167.31,113.84]
[1717233007535,2.2108,167.36,167.33,60.0]
[1717233007712,2.2108,167.36,167.33,77.98]
[1717233009010,2.2108,167.36,167.33,113.84]
[1717233009343,2.2108,167.36,167.34,0.17]
[1717233009639,2.2107,167.37,167.33,113.84]
[1717233010437,2.2108,167.36,167.33,113.84]
[1717233013346,2.2108,167.36,167.33,53.84]
[1717233014237,2.2108,167.36,167.33,113.84]
[1717233015335,2.2108,167.36,167.33,53.84]
[1717233015720,2.2108,167.36,167.33,113.84]
[1717233017645,2.2108,167.36,167.33,53.84]
[1717233017829,2.2109,167.35,167.31,113.84]
[1717233018032,2.2109,167.35,167.31,53.84]
[1717233018219,2.2109,167.35,167.31,113.84]
[1717233018652,2.2109,167.35,167.31,53.84]
[1717233019020,2.2109,167.35,167.3,17.98]
[1717233021248,2.2109,167.35,167.31,77.98]
[1717233022444,2.2108,167.36,167.31,77.98]
[1717233025144,3.43,167.4,167.29,60.0]
[1717233025145,2.2111,167.34,167.29,60.0]
[1717233025348,2.2112,167.33,167.29,17.98]
[1717233027162,2.211,167.34,167.29,17.98]
[1717233027329,2.2112,167.33,167.29,17.98]
[1717233028055,2.2112,167.33,167.28,35.86]
[1717233028236,2.2112,167.33,167.28,53.84]
[1717233030346,5.6412,167.33,167.28,17.98]
[1717233030572,5.6412,167.33,167.27,9.26543878]
[1717233030573,2.2113,167.32,167.27,9.26543878]
[1717233031055,2.2113,167.32,167.27,27.24543878]
[1717233031837,2.2113,167.32,167.27,27.24843547]
[1717233033753,2.2113,167.32,167.27,27.07843547]
[1717233035055,2.2113,167.32,167.27,26.90843547]
[1717233036336,2.2113,167.32,167.27,17.98]
[1717233038649,2.2113,167.32,167.26,17.98]
[1717233038855,2.2113,167.32,167.27,17.98]
[1717233039258,2.2113,167.32,167.27,26.90849003]
[1717233040460,2.2114,167.31,167.26,8.92849003]
[1717233041670,2.2114,167.31,167.26,26.90849003]
[1717233045165,2.2116,167.3,167.26,8.92849003]
[1717233045469,2.2115,167.31,167.26,8.92849003]
[1717233046869,2.2116,167.3,167.26,8.92849003]
[1717233051250,2.2116,167.3,167.26,26.90849003]
[1717233053577,2.2116,167.3,167.26,17.98]
[1717233053758,2.2116,167.3,167.26,26.90858998]
[1717233056188,2.2116,167.3,167.26,86.90858998]
[1717233059681,2.2116,167.3,167.26,122.76858998]
[1717233060868,2.2117,167.29,167.26,122.76858998]
[1717233064990,2.2117,167.29,167.26,122.76989922]
[1717233066485,2.2115,167.31,167.26,122.76989922]
[1717233066692,3.43,167.34,167.26,122.76989922]
[1717233066994,2.2117,167.3,167.26,122.76989922]
[1717233067577,2.2114,167.31,167.28,77.98]
[1717233068992,2.2114,167.31,167.28,113.84]
[1717233069166,2.2114,167.31,167.29,0.34]
[1717233070988,2.2115,167.3,167.29,0.34]
[1717233072898,2.2115,167.31,167.29,0.34]
[1717233074792,2.2113,167.32,167.3,77.98]
[1717233074974,2.2113,167.33,167.3,77.98]
[1717233075174,2.2113,167.33,167.31,0.17]
[1717233075387,2.2113,167.33,167.31,0.34]
[1717233075604,2.2113,167.32,167.31,0.34]
[1717233077391,2.2112,167.33,167.31,0.34]
[1717233077896,2.211,167.34,167.31,0.34]
[1717233078471,2.2112,167.33,167.31,0.34]
[1717233079997,7.8512,167.38,167.31,0.34]
[1717233079998,2.2111,167.34,167.31,0.34]
[1717233081094,2.2111,167.34,167.3,113.84]
[1717233081301,2.2112,167.33,167.3,53.84]
[1717233083003,2.2112,167.33,167.3,113.84]
[1717233083607,2.2111,167.34,167.3,113.84]
[1717233085311,2.2112,167.33,167.3,113.84]
[1717233087688,2.2111,167.34,167.3,113.84]
[1717233091208,2.2111,167.34,167.31,0.17]
[1717233091393,2.2111,167.34,167.31,0.34]
[1717233101701,2.2111,167.34,167.32,77.98]
[1717233104907,2.2109,167.35,167.32,77.98]
[1717233105102,2.211,167.34,167.32,77.98]
[1717233105410,2.211,167.34,167.32,84.4222]
[1717233105910,4.4208,167.39,167.32,84.4222]
[1717233106113,4.4208,167.39,167.32,120.2822]
[1717233106318,4.4208,167.39,167.33,0.34]
[1717233107409,2.2109,167.35,167.33,0.34]
[1717233108313,2.2109,167.35,167.34,17.98]
[1717233109616,2.2109,167.35,167.34,77.98]
[1717233109805,2.2108,167.36,167.34,77.98]
[1717233110403,2.2109,167.35,167.34,77.98]
[1717233111911,2.2108,167.36,167.34,77.98]
[1717233114918,2.2109,167.35,167.34,77.98]
[1717233115111,2.2108,167.36,167.34,77.98]
[1717233116722,2.2109,167.35,167.34,77.98]
[1717233120013,2.2109,167.35,167.34,17.98]
[1717233120412,2.2109,167.35,167.31,53.84]
[1717233120906,2.2109,167.35,167.33,17.98]
[1717233124014,2.2109,167.35,167.31,42.3022]
[1717233124331,2.2109,167.35,167.31,53.84]
[1717233125009,2.211,167.34,167.31,53.84]
[1717233125617,2.211,167.34,167.3,17.98]
[1717233125820,2.2112,167.33,167.3,17.98]
[1717233126732,2.211,167.34,167.3,17.98]
[1717233127939,2.211,167.34,167.3,113.85]
[1717233128230,2.211,167.34,167.31,0.34]
[1717233133611,2.211,167.34,167.32,77.98]
[1717233137510,2.211,167.34,167.32,17.98]
[1717233137726,2.2112,167.33,167.31,54.19]
[1717233140549,2.2112,167.33,167.32,77.98]
[1717233140729,2.2112,167.33,167.32,78.15]
[1717233141154,2.2112,167.33,167.32,18.15]
[1717233141443,2.2112,167.33,167.32,17.98]